Cogmind - Beta 13 @@@ ROGUE MODE // 2024.04.02 @ 14:16:00 Player: sauce Result: Destroyed by S-27 Virus with Autogun Performance ------------- Evolutions (3) 1500 Regions Visited (7) 1400 Robots Destroyed (52) 260 Value Destroyed (1357) 1357 Prototype IDs (0) 0 Alien Tech Used (0) 0 Bonus (0) 0 TOTAL SCORE: 4517 Bonus ------- None Cogmind --------- Core Integrity 0/700 Matter 270/300 Energy 100/100 System Corruption 0% Temperature Cool (0) Movement Core (50) Location -7/Factory Parts ------- > --- POWER (2) -------- (None) > --- PROPULSION (3) --- (None) > --- UTILITY (5) ------ Weapon Cycler > --- WEAPON (3) ------- (None) > --- INVENTORY (5) ---- Huge Storage Unit Melee Analysis Suite Peak State ------------ > --- POWER ------------ Deuterium Engine Deuterium Engine > --- PROPULSION ------- Advanced Treads Aluminum Leg Aluminum Leg > --- UTILITY ---------- Humpback Weapon Cycler > --- WEAPON ----------- Gatling Laser Heavy Assault Rifle Spear > --- INVENTORY -------- Huge Storage Unit Melee Analysis Suite Hardened Light Armor Plating Grenade Launcher Improved Datajack [Rating: 28] Favorites ----------- Power Deuterium Engine Engine Deuterium Engine Power Core Light Nuclear Core Propulsion Aluminum Leg Treads Advanced Treads Leg Aluminum Leg Wheel Wheel Hover Unit Gravmag System Utility Weapon Cycler Device Weapon Cycler Storage Humpback Processor Terrain Scan Processor Protection Hardened Light Armor Plating Weapon Gatling Laser Energy Gun Gatling Laser Energy Cannon Heavy Particle Cannon Ballistic Gun Heavy Assault Rifle Launcher Mini Grenade Launcher Special Weapon Mining Laser Impact Weapon Heavy Mace Piercing Weapon Spear Special Melee Weapon Improved Datajack Build | -11 -10 -9 -9 -9 -8 -8 -7 ------- Run | Yrd Mat Mat Min Exi Min Mat Fac Slots Evolved 6 | . . 2 . . . 2 2 Power 1 | . . . . . . 1 . Propulsion 1 | . . . . . . 1 . Utility 3 | . . 1 . . . . 2 Weapon 1 | . . 1 . . . . . Parts Attached 53 | 5 12 11 11 1 . 7 6 Power 7 | 1 2 1 1 . . 1 1 Engine 6 | 1 2 1 1 . . 1 . Core 1 | . . . . . . . 1 Reactor . | . . . . . . . . Propulsion 13 | 2 4 2 4 . . 1 . Treads 3 | . 2 . . . . 1 . Leg 7 | . 2 2 3 . . . . Wheel 2 | 2 . . . . . . . Hover 1 | . . . 1 . . . . Flight . | . . . . . . . . Utility 7 | . 3 1 1 1 . . 1 Device 2 | . . 1 1 . . . . Storage 3 | . 2 . . 1 . . . Processor 1 | . 1 . . . . . . Hackware . | . . . . . . . . Protection 1 | . . . . . . . 1 Artifact . | . . . . . . . . Weapon 26 | 2 3 7 5 . . 5 4 Energy Gun 4 | . . . 1 . . 3 . Energy Cannon 1 | . . . . . . 1 . Ballistic Gun 12 | 2 1 4 3 . . . 2 Ballistic Cannon . | . . . . . . . . Launcher 4 | . 1 1 . . . 1 1 Special Weapon 1 | . 1 . . . . . . Impact Weapon 2 | . . 2 . . . . . Slashing Weapon . | . . . . . . . . Piercing Weapon 1 | . . . 1 . . . . Special Melee Weapon 1 | . . . . . . . 1 Unidentified Prototypes . | . . . . . . . . Parts Lost 15 | . 1 . . . . 1 13 Power 3 | . . . . . . 1 2 Propulsion 4 | . 1 . . . . . 3 Utility 2 | . . . . . . . 2 Weapon 6 | . . . . . . . 6 Highest Loss Streak 9 | . 1 . . . . 1 9 To Critical Strikes 1 | . . . . . . . 1 Average Slot Usage (%) 90 | . 87 94 98 98 88 88 63 Engine 11 | . 14 10 11 11 11 16 4 Treads 2 | . 8 3 . . . 9 4 Leg 19 | . 12 18 21 22 22 18 11 Device 9 | . . 6 10 11 11 9 7 Storage 10 | . 8 11 11 11 11 9 6 Processor 4 | . 10 11 11 9 . . . Energy Gun 10 | . . . 10 11 11 14 10 Energy Cannon 1 | . . . . . . 3 6 Ballistic Gun 10 | . 17 18 11 11 11 5 1 Piercing Weapon 7 | . . . 10 11 11 3 . Naked Turns . | . . . . . . . . Heaviest Build 232 | 6 89 99 99 219 219 232 228 Greatest Support 40 | 20 40 40 20 20 20 22 22 Greatest Overweight (x) 71 | . 9 4 9 10 10 10 71 Average Overweight (x) 5 | . . 3 4 4 10 10 13 Largest Inventory Capacity 35 | 5 25 25 25 35 35 35 35 Average Capacity 30 | 5 14 25 25 26 35 35 32 Most Carried 14 | 5 9 12 14 5 7 8 8 Average Carried 5 | 2 5 7 4 4 6 5 5 Final Capacity 35 | 5 25 25 25 35 35 35 5 Final Carried 11 | 3 6 11 4 5 7 6 2 Class Distribution -------------------- 43% | Hauler-Mutant 35% | Mutant 11% | Hauler-Gunner 5% | Gunner 4% | Hauler-Tank Dominant Class ---------------- Mutant | -10/Materials Gunner | -9/Materials Mutant | -9/Mines Mutant | -9/Exiles Hauler-Mutant | -8/Mines Hauler-Gunner | -8/Materials Hauler-Tank | -7/Factory Resources | -11 -10 -9 -9 -9 -8 -8 -7 ----------- Run | Yrd Mat Mat Min Exi Min Mat Fac Matter Collected 1148 | 258 187 352 134 . 46 171 . Remotely . | . . . . . . . . Salvage Created 1429 | 34 256 303 196 . 163 364 113 Parts 101 | 1 19 29 15 . 15 15 7 Haulers Intercepted . | . . . . . . . . Recyclers Shooed 1 | . . . . . 1 . . Parts Field Recycled . | . . . . . . . . Retrieved Matter . | . . . . . . . . Parts Self-Destructed . | . . . . . . . . Prevented . | . . . . . . . . Kills | -11 -10 -9 -9 -9 -8 -8 -7 ------- Run | Yrd Mat Mat Min Exi Min Mat Fac Combat Hostiles Destroyed 44 | 1 8 12 4 . 9 6 4 Guns 37 | 1 6 10 4 . 9 4 3 Cannons 1 | . . . . . . . 1 AOE 6 | . 2 2 . . . 2 . Classes Destroyed 9 | 1 3 1 2 . 1 1 . Builder 1 | . 1 . . . . . . Tunneler 1 | . . . 1 . . . . Mechanic 1 | . . 1 . . . . . Watcher 5 | . 1 1 . . . 3 . Swarmer 22 | . 3 7 . . 8 . 4 Grunt 17 | 1 5 5 3 . . 3 . Duelist 1 | . . . 1 . . . . Sentry 3 | . . . . . . 3 . Hunter 1 | . . . . . 1 . . Best Kill Streak 5 | 1 4 5 3 . 4 3 2 Combat Bots Only 4 | 1 3 4 3 . 4 3 2 Max Kills in Single Turn 3 | 1 3 2 1 . 2 2 1 Gunslinging 1 | . . 1 . . . . . Exploded 2 | . 2 2 . . . 2 . Melee . | . . . . . . . . Uniques/NPCs Destroyed . | . . . . . . . . Combat | -11 -10 -9 -9 -9 -8 -8 -7 -------- Run | Yrd Mat Mat Min Exi Min Mat Fac Hostile Shots Fired 379 | 2 47 82 23 . 19 44 162 Missed 96 | 1 17 19 6 . 4 12 37 Damage Taken 3748 | 12 396 571 248 . 163 484 1874 Core 980 | 12 56 91 55 . 6 56 704 Absorbed by Shields . | . . . . . . . . Regen/Repaired (Parts) 28 | . 28 . . . . . . Core Remaining (%) 79 | 95 72 . . . 62 89 . Volleys Fired 125 | 2 31 25 8 . 12 38 9 Largest 3 | 2 2 3 2 . 2 3 3 Hottest 218 | 40 120 76 103 . 103 218 218 Shots Fired 226 | 4 45 55 16 . 24 65 17 Gun 205 | 4 42 50 16 . 24 58 11 Cannon 12 | . . . . . . 6 6 Launcher 7 | . 1 5 . . . 1 . Special 2 | . 2 . . . . . . Kinetic 155 | 4 42 50 8 . 12 32 7 Thermal 64 | . 2 . 8 . 12 32 10 Explosive 7 | . 1 5 . . . 1 . Electromagnetic . | . . . . . . . . Robot Hit Streak 10 | 3 6 5 9 . 10 8 4 Robot Miss Streak 7 | . 4 5 2 . 3 7 2 Penetration Max . | . . . . . . . . Secondary Targets 2 | . . 2 . . . . . Max Gunslinging Chain 1 | . . 1 . . . . . Shots Hit Robots 117 | 3 22 23 17 . 14 29 9 Core Hits 80 | 2 16 16 9 . 11 20 6 Critical Kills 1 | . 1 . . . . . . Critical Parts Destroyed . | . . . . . . . . Critical Strikes 2 | . 1 . . . . 1 . Burn 1 | . . . . . . 1 . Destroy 1 | . 1 . . . . . . Melee Attacks 4 | . . 1 2 . . . 1 Impact 1 | . . 1 . . . . . Slashing . | . . . . . . . . Piercing 2 | . . . 2 . . . . Sneak Attacks 2 | . . . 2 . . . . Combat Hostiles . | . . . . . . . . Follow-up Attacks . | . . . . . . . . Damage Inflicted 2443 | 28 438 556 380 . 221 634 186 Guns 1741 | 28 227 376 284 . 221 469 136 Cannons 100 | . . . . . . 50 50 Explosions 482 | . 187 180 . . . 115 . Melee 96 | . . . 96 . . . . Ramming . | . . . . . . . . Kinetic 1057 | 28 227 376 104 . 57 162 103 Thermal 808 | . 24 . 180 . 164 357 83 Explosive 482 | . 187 180 . . . 115 . Electromagnetic . | . . . . . . . . Impact . | . . . . . . . . Slashing . | . . . . . . . . Piercing 96 | . . . 96 . . . . Highest Corruption . | . . . . . . . . Average Corruption . | . . . . . . . . Corruption Purged . | . . . . . . . . Corruption Blocked . | . . . . . . . . Overload Shots . | . . . . . . . . Overflow Damage 17 | . . . 10 . . 7 . Projectiles 7 | . . . . . . 7 . Explosions . | . . . . . . . . Melee 10 | . . . 10 . . . . Knockbacks . | . . . . . . . . Impact . | . . . . . . . . Kinetic . | . . . . . . . . Secondary . | . . . . . . . . Self-Inflicted Damage . | . . . . . . . . Shots . | . . . . . . . . Rammed . | . . . . . . . . Targets Rammed . | . . . . . . . . Kicked . | . . . . . . . . Crushed . | . . . . . . . . Highest Temperature 336 | . 46 36 336 . 224 311 291 Average Temperature 96 | . 21 10 154 . 81 109 111 Received Heat Transfer 534 | 6 108 111 84 . . 225 . Effects 5 | . . . 1 . . 4 . Energy Bleed 1 | . . . . . . 1 . Interference 3 | . . . . . . 3 . Short Circuit 1 | . . . 1 . . . . Siege Activations . | . . . . . . . . Robots Corrupted . | . . . . . . . . Combat Hostiles . | . . . . . . . . Parts Fried . | . . . . . . . . Impact Corruptions . | . . . . . . . . Robots Melted . | . . . . . . . . Combat Hostiles . | . . . . . . . . Parts Melted 6 | . . . 2 . 1 2 1 Heat Transferred 1819 | . 50 . 425 . 375 820 149 Parts Sabotaged . | . . . . . . . . Parts Stolen . | . . . . . . . . Parts Stripped . | . . . . . . . . Power Chain Reactions . | . . . . . . . . Alert | -11 -10 -9 -9 -9 -8 -8 -7 ------- Run | Yrd Mat Mat Min Exi Min Mat Fac Peak Influence 369 | 20 183 369 208 . 150 113 110 Initial 93 | . 13 34 93 . . 22 25 Average 46 | 2 106 235 29 . 26 26 37 Maximum Alert Level 1 | . . 1 1 . . . . Low Security (%) 93 | 100 100 25 92 . 100 100 100 Level 1 6 | . . 74 7 . . . . Level 2 . | . . . . . . . . Level 3 . | . . . . . . . . Level 4 . | . . . . . . . . Level 5 . | . . . . . . . . High Security . | . . . . . . . . Max Security . | . . . . . . . . Squads Dispatched 7 | . 3 2 1 . . 1 . Investigation 5 | . 3 1 1 . . . . Extermination . | . . . . . . . . Reinforcement 2 | . . 1 . . . 1 . Assault . | . . . . . . . . Garrison . | . . . . . . . . Intercept . | . . . . . . . . Searches Triggered . | . . . . . . . . Construction Impeded . | . . . . . . . . Haulers Reinforced . | . . . . . . . . Active Scanning Responses . | . . . . . . . . Cargo Convoy Interrupts . | . . . . . . . . Stealth | -11 -10 -9 -9 -9 -8 -8 -7 --------- Run | Yrd Mat Mat Min Exi Min Mat Fac Distress Signals 8 | . 1 4 . . . 2 1 Communications Jammed . | . . . . . . . . Distress Signals . | . . . . . . . . Times Spotted 72 | 1 12 17 4 . 14 15 9 Peak Tracking Total 4 | 1 4 3 3 . 4 3 4 Tactical Retreats 4 | . 2 . . . 2 . . Traps | -11 -10 -9 -9 -9 -8 -8 -7 ------- Run | Yrd Mat Mat Min Exi Min Mat Fac Traps Triggered 2 | . 2 . . . . . . Indirectly . | . . . . . . . . Trap Hack Attempts . | . . . . . . . . Triggered . | . . . . . . . . Disarmed . | . . . . . . . . Reprogrammed . | . . . . . . . . Reused . | . . . . . . . . Traps Extracted . | . . . . . . . . Installed . | . . . . . . . . Triggered . | . . . . . . . . Machines | -11 -10 -9 -9 -9 -8 -8 -7 ---------- Run | Yrd Mat Mat Min Exi Min Mat Fac Machines Disabled 7 | . . 2 1 . 2 . 2 Max in Single Turn 1 | . . 1 1 . 1 . 1 Machines Repaired . | . . . . . . . . Machines Dismantled . | . . . . . . . . Machines Sabotaged . | . . . . . . . . Overloaded Fab Kills . | . . . . . . . . Hacking | -11 -10 -9 -9 -9 -8 -8 -7 --------- Run | Yrd Mat Mat Min Exi Min Mat Fac Machines Accessed 6 | . 2 2 1 1 . . . Terminals 2 | . 1 1 . . . . . Fabricators . | . . . . . . . . Repair Stations 1 | . 1 . . . . . . Recycling Units . | . . . . . . . . Scanalyzers 1 | . . 1 . . . . . Garrison Access . | . . . . . . . . Total Hacks 50 | . 10 16 1 23 . . . Successful 43 | . 6 13 1 23 . . . Failed 7 | . 4 3 . . . . . Catastrophic . | . . . . . . . . Database Lockouts . | . . . . . . . . Manual . | . . . . . . . . Terminals 6 | . 2 4 . . . . . Fabricators . | . . . . . . . . Repair Stations 8 | . 8 . . . . . . Recycling Units . | . . . . . . . . Scanalyzers 12 | . . 12 . . . . . Garrison Access . | . . . . . . . . Terminal Hacks 27 | . 2 1 1 23 . . . Record 23 | . . . . 23 . . . Open Door 1 | . . . 1 . . . . Alert Level 1 | . . 1 . . . . . Maintenance Status 1 | . 1 . . . . . . Registered Components 1 | . 1 . . . . . . Fabricator Hacks . | . . . . . . . . Repair Station Hacks 4 | . 4 . . . . . . Scan Component 2 | . 2 . . . . . . Repair 2 | . 2 . . . . . . Recycling Unit Hacks . | . . . . . . . . Scanalyzer 12 | . . 12 . . . . . Insert Component 6 | . . 6 . . . . . Analyze 6 | . . 6 . . . . . Garrison Access Hacks . | . . . . . . . . Unauthorized Hacks . | . . . . . . . . Terminals . | . . . . . . . . Fabricators . | . . . . . . . . Repair Stations . | . . . . . . . . Recycling Units . | . . . . . . . . Scanalyzers . | . . . . . . . . Garrison Access . | . . . . . . . . Data Cores Recovered . | . . . . . . . . Used . | . . . . . . . . Hacking Detections 4 | . 2 2 . . . . . Full Trace Events 2 | . 1 1 . . . . . Feedback Events . | . . . . . . . . Feedback Blocked . | . . . . . . . . Robot Schematics Acquired . | . . . . . . . . Robots Built . | . . . . . . . . Authchips . | . . . . . . . . Time . | . . . . . . . . Total Robot Build Rating . | . . . . . . . . Part Schematics Acquired 6 | . . 6 . . . . . Parts Built . | . . . . . . . . Authchips . | . . . . . . . . Time . | . . . . . . . . Total Part Build Rating . | . . . . . . . . Parts Repaired 2 | . 2 . . . . . . Time 52 | . 52 . . . . . . Parts Recycled . | . . . . . . . . Recycled Matter . | . . . . . . . . Retrieved Matter . | . . . . . . . . Retrieved Components . | . . . . . . . . Parts Scanalyzed 6 | . . 6 . . . . . Part Schematics Acquired 6 | . . 6 . . . . . Parts Damaged . | . . . . . . . . Bothacking | -11 -10 -9 -9 -9 -8 -8 -7 ------------ Run | Yrd Mat Mat Min Exi Min Mat Fac Used RIF Installer . | . . . . . . . . Robots Hacked . | . . . . . . . . Non-combat . | . . . . . . . . Combat . | . . . . . . . . Robot Hacks Applied . | . . . . . . . . Relay Couplers Released . | . . . . . . . . Fabnet Peak Effective % . | . . . . . . . . Robots Rewired . | . . . . . . . . Allies Hacked . | . . . . . . . . Hacks Repelled . | . . . . . . . . Allies | -11 -10 -9 -9 -9 -8 -8 -7 -------- Run | Yrd Mat Mat Min Exi Min Mat Fac Total Allies 1 | . . . 1 . . . . Largest Group 1 | . . . 1 . . . . Highest-Rated Group 31 | . . . 31 . . . . Highest-Rated Ally 31 | . . . 31 . . . . Total Orders . | . . . . . . . . Ally Attacks . | . . . . . . . . Total Damage . | . . . . . . . . Kills . | . . . . . . . . Allies Corrupted . | . . . . . . . . Allies Melted . | . . . . . . . . Intel | -11 -10 -9 -9 -9 -8 -8 -7 ------- Run | Yrd Mat Mat Min Exi Min Mat Fac Robot Analysis Total . | . . . . . . . . Derelict Logs Recovered 3 | . . . 3 . . . . Drone Launches . | . . . . . . . . Drone Recoveries . | . . . . . . . . Exploration | -11 -10 -9 -9 -9 -8 -8 -7 ------------- Run | Yrd Mat Mat Min Exi Min Mat Fac Turns Passed 12101 | 68 602 699 2111 1596 4027 2310 688 Spaces Moved 2145 | 73 276 153 495 371 486 234 57 Core 43 | 28 9 . . . . . 6 Treads 355 | . 48 22 . . . 234 51 Legs 1640 | . 157 131 495 371 486 . . Wheels 107 | 45 62 . . . . . . Hover . | . . . . . . . . Flight . | . . . . . . . . Fastest Speed 50 | 50 80 320 400 120 820 945 50 Average Speed 540 | 68 177 388 409 431 820 945 1100 Slowest Speed 3600 | 80 500 400 750 820 820 945 3600 Overloaded Moves . | . . . . . . . . Propulsion Burnouts . | . . . . . . . . Robots Hopped . | . . . . . . . . Cave-ins Triggered . | . . . . . . . . Exploration Rate (%) 41 | 5 41 19 71 79 94 16 3 Regions Visited 7 Branch Regions 3 Pre-discovered Areas 2 | . . . 1 1 . . . Known Exits Taken 2 | . . . 1 . . 1 . Unknown Exits Taken 5 | 1 1 1 . 1 1 . . Scrap Searched 1 | . . . . . 1 . . Spaces Dug . | . . . . . . . . Terrain Destroyed 50 | . 6 29 . . . 15 . Melee . | . . . . . . . . Projectile 3 | . . . . . . 3 . AOE 47 | . 6 29 . . . 12 . Terrain Rammed . | . . . . . . . . Walls Destroyed . | . . . . . . . . Machines Disabled . | . . . . . . . . Actions | -11 -10 -9 -9 -9 -8 -8 -7 --------- Run | Yrd Mat Mat Min Exi Min Mat Fac Total 2508 | 87 349 214 572 374 514 292 106 Wait 85 | . 5 . 30 . 15 5 30 Move 2138 | 72 275 152 494 370 485 233 57 Hop . | . . . . . . . . Pick Up 50 | 8 15 12 8 . 2 3 2 Fast Attach 4 | . 2 . . 1 . . 1 Attach 49 | 5 10 11 11 . . 7 5 Detach 24 | . 5 7 6 1 . 4 1 Swap . | . . . . . . . . Drop 28 | . 6 6 13 1 . 2 . Fire 125 | 2 31 25 8 . 12 38 9 Melee 4 | . . 1 2 . . . 1 Ram . | . . . . . . . . Kick . | . . . . . . . . Crush . | . . . . . . . . Escape Stasis . | . . . . . . . . Rewire 1 | . . . . 1 . . . Trap . | . . . . . . . . Miscellaneous . | . . . . . . . . Route ------- -11/Scrapyard -10/Materials (discovered 2 exits: *Mat / [*Min]) -9/Materials (discovered 2 exits: *Min x2) -9/Mines (discovered 2 exits: [*Mat] / *Exi) -9/Exiles (discovered 2 exits: [*Min x2]) -8/Mines (discovered 2 exits: [*Mat x2]) -8/Materials (discovered 3 exits: *Fac x2 / Sto) -7/Factory History --------- Turn | Location | Event 2 | -11/Scrapyard | Met Revision 17 54 | -11/Scrapyard | Discovered new exit (range 8) 69 | -11/Scrapyard | Entered Materials 181 | -10/Materials | Discovered new exit (range 8) 264 | -10/Materials | Discovered new exit (range 10) 303 | -10/Materials | Build established: Mutant 402 | -10/Materials | Repaired Ion Engine 428 | -10/Materials | Repaired Aluminum Leg 671 | -10/Materials | Entered another Materials area 671 | -9/Materials | Evolved 2 slots: Utility x1, Weapon x1 966 | -9/Materials | Build established: Gunner 1246 | -9/Materials | Discovered new exit (range 12) 1246 | -9/Materials | Discovered new exit (range 11) 1370 | -9/Materials | Entered Mines 1391 | -9/Mines | Met a Derelict shopkeep closing up shop 1575 | -9/Mines | Learned 2 Materials zone layouts 1587 | -9/Mines | Learned location of Storage (-8) 1738 | -9/Mines | Build established: Mutant 2031 | -9/Mines | Identified exit to Exiles 2492 | -9/Mines | Deemed a non-threat by the Exiles lab entrance 2801 | -9/Mines | Discovered new exit (range 7) 2884 | -9/Mines | Received a Mining Laser from a helpful Derelict 3481 | -9/Mines | Entered Exiles 3557 | -9/Exiles | Discovered new exit (range 15) 3685 | -9/Exiles | Met 8R-AWN 3777 | -9/Exiles | Met EX-HEX 3958 | -9/Exiles | Met EX-DEC 3998 | -9/Exiles | Learned location of Zion (-7) 4211 | -9/Exiles | Visited The Gauntlet 4979 | -9/Exiles | Discovered new exit (range 14) 5077 | -9/Exiles | Entered Mines 5133 | -8/Mines | Build established: Hauler-Mutant 5549 | -8/Mines | Discovered new exit (range 10) 6341 | -8/Mines | Discovered new exit (range 14) 9104 | -8/Mines | Entered Materials 9104 | -8/Materials | Evolved 2 slots: Power x1, Propulsion x1 9105 | -8/Materials | Identified exit to Factory 9105 | -8/Materials | Identified exit to Storage 10265 | -8/Materials | Build established: Hauler-Gunner 11376 | -8/Materials | Discovered exit to Factory (range 4) 11414 | -8/Materials | Entered Factory 11414 | -7/Factory | Evolved 2 slots: Utility x2 11720 | -7/Factory | Build established: Hauler-Tank 11947 | -7/Factory | Lost 4 parts (1p2n1w) 12058 | -7/Factory | Core integrity fell below 50% 12082 | -7/Factory | Core integrity fell below 20% 12102 | -7/Factory | Destroyed by S-27 Virus with Autogun Last Messages --------------- R-06 Scavenger collects VTOL Module. R-06 Scavenger collects Autogun. R-06 Scavenger collects VTOL Module. W-25 Informer sends out distress signal. K-01 Serf collects debris. Hvy. Particle Cannon destroyed. Hrd. Light Armor Plating destroyed. Gauss Rifle destroyed. Humpback destroyed. Aluminum Leg destroyed. R-06 Scavenger collects Lgt. Nuclear Core. Acquired Lgt. Nuclear Core. Grenade Launcher destroyed. R-06 Scavenger collects VTOL Module. Lgt. Nuclear Core destroyed. Hvy. Assault Rifle destroyed. Imp. Datajack destroyed. R-06 Scavenger collects Hvy. Ion Cannon. R-06 Scavenger collects Pulse Rifle. R-06 Scavenger destroyed. Map ----- +----------------------------------------------------+ | ?????????????????????????????????????????????????? | | ?????????????????????????????????????????????????? | | ?????????????????????????????????????????????????? | | ?????????????????????????????????????????????????? | | ?????????????????????????????????????????????????? | | ?????????????????????????????????????????????????? | | ?????????????????????????????????????????????????? | | ?????????????????????????????????????????????????? | | ?????????????????????????????????????????????????? | | ????????????????????????????????###??????????????? | | ???????????????????????????????"""#??????????????? | | ????????????????????????#######"Y"##?????????????? | | ????????????????????????# ^ ?????????????? | | ????????????????????????# ?????????????? | | ????????????????????????# ^ ??????????????? | | ????????????????????????+ """ """??????????????? | | ????????????????????????# """ """ ?????????????? | | ????????????????????????# """ """ #???????????? | | ???###################### #???????????? | | ???# """ """ #???????????? | | ???# """ """ ?????????????? | | ???# """ """ #???????????? | | ???# #???????????? | | ???# us %""" """ #???????????? | | ???# #### ###########=ss""" """ ?????????????? | | ???# #??# #?????????#@%[""" """ #???????????? | | ???# #??# #???????### ]*%% #???????????? | | ???# #??# #???????#"" ^%%"" """ #???????????? | | ???# ####+#########" ^ "%"%"""??????????????? | | ???# # #"F """ ""???????????????? | | ???# # #"" k ^ ??????????????? | | ???# # ### ^ """ """??????????????? | | ???# # #?# %%"" """??????????????? | | ???# # #?# %"" ""???????????????? | | ???# # #?# ???????????????? | | ???# + #?# ?????????????????? | | ???# # #?# ?????????????????? | | ???# # #?? ?????????????????? | | ???# # #?? ##?????????????????? | | ???# # #?? #??????????????????? | | ???####### #?? #??????????????????? | | ?????????##############?? ???????????????????? | | ????????????????????????? ?????????????????????? | | ?????????????????????????????????????????????????? | | ?????????????????????????????????????????????????? | | ?????????????????????????????????????????????????? | | ?????????????????????????????????????????????????? | | ?????????????????????????????????????????????????? | | ?????????????????????????????????????????????????? | | ?????????????????????????????????????????????????? | +----------------------------------------------------+ Best States ------------- Heat Dissipation 34 Energy Generation 23 Energy Capacity 450 Matter Stores 300 Matter Capacity 300 Sight Range 16 Terrain Scan Density 85 Armor Coverage 150 Weapon Cycling 15 Evasion (%) 55 Recoil Reduction 2 Item Schematics ----------------- Hvy. Assault Rifle | -9/Materials | Scanalyzed Deuterium Engine | -9/Materials | Scanalyzed Hvy. Mace | -9/Materials | Scanalyzed Hrd. Light Armor Plating | -9/Materials | Scanalyzed Assault Rifle | -9/Materials | Scanalyzed Mni. Grenade Launcher | -9/Materials | Scanalyzed Robot Schematics ------------------ None Fabricated ------------ Nothing Alien Tech Used ----------------- None Achievements -------------- Librarian Made in Tau Ceti IV One Hack Too Far Part-time Mechanic Tank Tourist Challenges ------------ None Game ------ Seed KineticImprinterDriver Manual? 0 Play Time 00:45:34 Cumulative 1.4 hours Start 2024.04.02 @ 13:31:45 End 2024.04.02 @ 14:16:00 Sessions 1 Manual Loads 0 Difficulty Rogue Special Mode None Game No. 3 Rogue 3 Adventurer 0 Explorer 0 Win Type - Total 0 Types 0/0/0/0/0/0/0/0/0 Lore% 5 Gallery% 4 Achievement% 4 Wizard Run 0 Options --------- Layout 1 ASCII 0 Keyboard 0 Movement Mouse Keybinds 0 Fullscreen 1 Font 24/Smallcaps Map View 50x35 Zoom Use 0% Tactical HUD 0 Map Filters NONE Filters NONE Steam 1 RUN: b5a01e56-5974-451e-9d26-0ed018a309e4